fUST/lending_fUST_20250811
["ID","MTS","AMOUNT","RATE_DAILY","PERIOD"]
[378548994,1754911220566,5000.0,0.0001984,2]
[378548996,1754911229781,201.13310184,0.0001977,2]
[378548997,1754911230169,201.13310184,0.0001977,2]
[378548998,1754911230552,201.13310184,0.00019771,2]
[378548999,1754911230941,201.13310184,0.00019771,2]
[378549000,1754911231500,201.13310184,0.00019771,2]
[378549002,1754911236009,5000.0,0.0001984,2]
[378549006,1754911252374,5000.0,0.0001984,2]
[378549007,1754911256987,1238.27498144,0.0001979,2]
[378549008,1754911257013,1225.20760706,0.0001979,2]
[378549010,1754911267713,5000.0,0.0001984,2]
[378549015,1754911283685,5000.0,0.0001984,2]
[378549020,1754911288028,8774.79239294,0.0001887,2]
[378549021,1754911288054,16125.20760706,0.0001887,2]
[378549023,1754911291829,1705.44564479,0.000189,2]
[378549024,1754911297440,208.25876922,0.00019769,3]
[378549025,1754911298683,344.486275,0.0001887,2]
[378549026,1754911299825,1616.60170393,0.0001984,2]
[378549027,1754911299849,3383.39829607,0.0001984,2]
[378549028,1754911302285,208.25876921,0.0001977,3]
[378549029,1754911307338,208.25876921,0.0001977,3]
[378549031,1754911315734,5000.0,0.0001984,2]
[378549032,1754911318274,11200.08416551,0.0001978,2]
[378549033,1754911318296,20000.0,0.0001978,2]
[378549034,1754911318317,20000.0,0.0001978,2]
[378549035,1754911318341,20000.0,0.0001978,2]
[378549036,1754911318362,20000.0,0.0001978,2]
[378549037,1754911318384,20000.0,0.0001978,2]
[378549038,1754911318406,20000.0,0.0001978,2]
[378549039,1754911318428,20000.0,0.0001978,2]
[378549040,1754911318450,20000.0,0.0001978,2]
[378549041,1754911318708,20000.0,0.0001978,2]
[378549042,1754911318730,20000.0,0.0001978,2]
[378549043,1754911318751,20000.0,0.0001978,2]
[378549044,1754911318772,20000.0,0.0001978,2]
[378549045,1754911318794,20000.0,0.0001978,2]
[378549046,1754911318815,20000.0,0.0001978,2]
[378549047,1754911318836,20000.0,0.0001978,2]
[378549048,1754911318858,20000.0,0.0001978,2]
[378549049,1754911318880,20000.0,0.0001978,2]
[378549050,1754911318903,18799.91583449,0.0001978,2]
[378549054,1754911331894,189.94710557,0.00019769,2]
[378549055,1754911331924,1010.13705994,0.0001984,2]
[378549056,1754911339589,3083.45915461,0.0001945,2]
[378549072,1754911368958,-164.732598,0.0001979,2]
[378549074,1754911371874,-443.10784628,0.0001979,2]
[378549075,1754911377266,-264.69241534,0.0001979,2]
[378549077,1754911382233,-211.76184646,0.0001979,2]
[378549079,1754911385283,-157.22112152,0.00019789,2]
[378549082,1754911390400,-151.58592883,0.0001969,2]
[378549083,1754911393054,-151.23240137,0.0001969,2]
[378549084,1754911393078,-142.77887848,0.00019789,2]
[378549085,1754911393102,-129.97291486,0.0001979,2]
[378549087,1754911396956,-164.90202035,0.0001979,2]
[378549088,1754911399042,-323.80693673,0.0001979,2]
[378549089,1754911401067,-181.71741387,0.0001979,2]
[378549090,1754911405061,-157.57316859,0.0001979,2]
[378549091,1754911410159,-168.77167557,0.0001979,2]
[378549092,1754911411746,-159.68745094,0.0001979,2]
[378549093,1754911413784,-198.91289411,0.0001979,2]
[378549094,1754911416454,-152.0,0.0001979,2]
[378549095,1754911420691,-303.19346416,0.0001979,2]
[378549096,1754911423456,-216.48985558,0.0001979,2]
[378549097,1754911425700,-201.35822976,0.0001979,2]
[378549098,1754911430536,-216.48985558,0.0001974,2]
[378549099,1754911433171,525.683001,0.00013699,2]
[378549100,1754911438007,-300.0,0.0001974,2]
[378549101,1754911438149,1016.99558472,0.00019178,2]
[378549103,1754911440054,-186.57617012,0.00019709,2]
[378549104,1754911444464,-414.61331616,0.00019709,2]
[378549105,1754911446026,-728.77522141,0.00019709,2]
[378549106,1754911447561,-408.10231988,0.00019709,2]
[378549107,1754911449263,221.3573158,8.3e-07,2]
[378549109,1754911454661,3979.19154508,0.00019137,2]
[378549110,1754911455832,-172.76850418,0.00019709,2]
[378549111,1754911459117,-268.46143292,0.00019709,2]
[378549114,1754911462162,-181.71741387,0.00019709,2]
[378549115,1754911463773,-226.04445118,0.00019709,2]
[378549117,1754911468485,-156.34261991,0.00019639,2]
[378549118,1754911470065,-16.42588427,0.00019639,2]
[378549119,1754911470086,-163.65704855,0.00019709,2]
[378549120,1754911473655,-267.97210634,0.00019709,2]
[378549121,1754911476588,-245.0155884,0.00019709,2]
[378549122,1754911479724,-165.52241516,0.00019709,2]
[378549124,1754911483977,-296.37,0.00019508,2]
[378549125,1754911483998,-16.7834271,0.00019709,2]
[378549126,1754911485869,-247.59114428,0.00019709,2]
[378549127,1754911488731,-404.97232064,0.00019709,2]
[378549128,1754911492672,-188.51352957,0.00019709,2]
[378549129,1754911495428,-238.70081188,0.00019709,2]
[378549130,1754911497026,-161.49793364,0.00019709,2]
[378549131,1754911500823,-260.68147908,0.00019709,2]
[378549132,1754911503917,-52.03336564,0.00019709,2]
[378549133,1754911503941,-122.8328428,0.00019763,2]
[378549134,1754911506537,-163.22729957,0.00019671,2]
[378549135,1754911511590,-173.36079911,0.00019671,2]
[378549136,1754911517405,-168.29404934,0.00019663,2]
[378549137,1754911518654,-14473.65331331,0.00019663,2]
[378549138,1754911518677,-785.80510108,0.00019671,2]
[378549139,1754911518697,-288.21480837,0.00019763,2]
[378549140,1754911518721,-1200.0,0.00019769,2]
[378549141,1754911518748,-300.0,0.0001977,2]
[378549142,1754911518771,-300.0,0.0001977,2]
[378549143,1754911518793,-300.0,0.0001977,2]
[378549144,1754911518819,-300.0,0.0001977,2]
[378549145,1754911518840,-300.0,0.0001977,2]
[378549146,1754911518865,-143385.32677724,0.00019771,2]
[378549147,1754911522986,5000.0,0.0001945,2]
[378549148,1754911539092,5000.0,0.0001945,2]
[378549149,1754911542497,-261.63178041,0.00019663,2]
[378549150,1754911542520,-48.29069923,0.00019663,6]
[378549151,1754911544568,-181.64020435,0.00019663,6]
[378549155,1754911547778,-269.06865637,0.00019663,6]
[378549156,1754911551071,-270.92086263,0.00019663,6]
[378549157,1754911554758,5000.0,0.0001945,2]
[378549158,1754911555288,-209.58761311,0.00019663,6]
[378549159,1754911556718,-172.1845301,0.00019571,2]
[378549160,1754911556740,-248.6635468,0.00019663,6]
[378549161,1754911563283,-460.0,0.00019663,6]
[378549162,1754911565873,-158.1403479,0.00019663,6]
[378549163,1754911568694,-159.30022003,0.00019663,6]
[378549164,1754911570088,2271.22834211,0.0001945,2]
[378549165,1754911570117,2728.77165789,0.0001945,2]
[378549166,1754911572621,-160.37135132,0.00019663,6]
[378549167,1754911574157,-230.11051151,0.00019663,6]
[378549168,1754911576312,-178.55908935,0.00019663,6]
[378549170,1754911578630,-410.51671611,0.00019663,6]
[378549171,1754911581039,-221.81447441,0.00019663,6]
[378549172,1754911581061,-95.67890653,0.00019671,2]
[378549173,1754911585237,5000.0,0.0001945,2]
[378549174,1754911587252,-165.95287388,0.00019671,2]
[378549175,1754911587276,-91.64349956,0.00019671,2]
[378549176,1754911590093,-80.54103053,0.00019671,2]
[378549177,1754911593140,1136.9637632,0.000189,2]
[378549178,1754911596466,-168.32223731,0.00019661,2]
[378549179,1754911598038,1496.66,0.0001945,2]
[378549180,1754911600629,-11.76069551,0.00019661,2]
[378549181,1754911600674,141.02647709,0.0001945,2]
[378549182,1754911600698,4858.97352291,0.0001945,2]
[378549183,1754911604961,-295.31099312,0.00019673,2]
[378549185,1754911607715,-284.60937965,0.00019673,2]
[378549186,1754911611819,-281.89349326,0.00019673,2]
[378549187,1754911615934,5000.0,0.0001945,2]
[378549188,1754911616327,-306.47440362,0.00019673,2]
[378549189,1754911618892,-194.10655001,0.00019673,2]
[378549191,1754911621506,-202.27741834,0.0001967,2]
[378549192,1754911624115,-71.75434912,0.0001967,2]
[378549193,1754911624139,-266.00067417,0.00019673,2]
[378549194,1754911626637,-274.03176744,0.00019672,2]
[378549195,1754911626668,-41.32637868,0.00019673,2]
[378549196,1754911631777,5000.0,0.0001945,2]
[378549197,1754911631846,-354.54708263,0.00019673,2]
[378549198,1754911633941,-308.16552185,0.00019673,2]
[378549201,1754911637619,-167.02182767,0.00019673,2]
[378549202,1754911639047,-166.59502043,0.00019573,2]
[378549203,1754911639069,-133.67597002,0.00019591,2]
[378549204,1754911643105,-32.91905039,0.00019591,2]
[378549205,1754911643127,-166.59502041,0.0001961,2]
[378549206,1754911643149,-19.76108806,0.00019628,2]
[378549207,1754911646185,-146.83393235,0.00019628,2]
[378549208,1754911646210,-42.1765737,0.00019673,2]
[378549209,1754911647962,4778.631056,0.0001945,2]
[378549210,1754911648278,221.368944,0.0001945,2]
[378549211,1754911648802,-161.10308367,0.00019673,2]
[378549212,1754911651981,-211.92183308,0.00019673,2]
[378549213,1754911653987,-374.81830604,0.00019673,2]
[378549214,1754911656172,-447.09215459,0.00019673,2]
[378549215,1754911659813,-340.49930046,0.00019673,2]
[378549216,1754911662011,-167.74362123,0.00019673,2]
[378549217,1754911663486,-394.54111384,0.00019673,2]
[378549218,1754911663955,5000.0,0.0001945,2]
[378549219,1754911666121,-209.91437452,0.00019673,2]
[378549220,1754911671151,-271.67294127,0.00019673,2]
[378549221,1754911673927,-254.0049634,0.00019673,2]
[378549222,1754911676473,-167.8616455,0.00019673,2]
[378549223,1754911678778,-176.16745337,0.00019673,2]
[378549224,1754911680003,5000.0,0.0001945,2]
[378549225,1754911680359,-167.64766389,0.00019673,2]
[378549226,1754911682997,-313.49718089,0.00019673,2]
[378549227,1754911684842,-200.92269802,0.00019672,2]
[378549228,1754911690466,-99.07730198,0.00019672,2]
[378549229,1754911690489,-166.24501413,0.00019673,2]
[378549230,1754911692432,-192.99594591,0.00019673,2]
[378549231,1754911694547,-227.33216717,0.00019673,2]
[378549232,1754911696019,5000.0,0.0001945,2]
[378549233,1754911697229,-198.6212951,0.00019673,2]
[378549237,1754911700474,-401.81967888,0.00019673,2]
[378549238,1754911704040,-287.3297992,0.00019673,2]
[378549241,1754911706564,-240.48863818,0.00019673,2]
[378549242,1754911708908,-292.69115805,0.00019673,2]
[378549243,1754911710965,-264.24533842,0.00019673,2]
[378549244,1754911712723,5000.0,0.0001945,2]
[378549245,1754911713575,-161.10308367,0.00019672,2]
[378549246,1754911713597,-5.81386718,0.00019672,2]
[378549247,1754911715041,-249.70313705,0.00019672,2]
[378549248,1754911717553,-251.28640038,0.00019672,2]
[378549249,1754911723047,10000.0,0.00018,2]
[378549250,1754911723069,30000.0,0.00018,2]
[378549251,1754911723092,30000.0,0.00018,2]
[378549252,1754911723114,30000.0,0.00018,2]
[378549253,1754911723136,30000.0,0.00018,2]
[378549254,1754911723160,30000.0,0.00018,2]
[378549255,1754911723184,27800.86399153,0.00018,2]
[378549256,1754911728894,-15.09574056,0.00019672,2]
[378549257,1754911728919,-172.80802818,0.00019672,2]
[378549258,1754911730870,2199.13600847,0.0001,2]
[378549259,1754911730894,15251.65491838,0.0001,2]
[378549260,1754911731024,10000.0,0.00018758,2]
[378549261,1754911731501,-278.35458977,0.00019475,2]
[378549262,1754911732002,4748.34508162,0.00017,2]
[378549263,1754911732024,6288.43703557,0.00017,2]
[378549264,1754911734487,-175.52180202,0.00019475,2]
[378549267,1754911736076,-165.84804853,0.00019475,2]
[378549268,1754911739335,-210.74264278,0.0001928,2]
[378549269,1754911741497,-176.94732526,0.0001928,2]
[378549270,1754911744906,-234.07192821,0.00019184,2]
[378549271,1754911745435,274.9203054,0.00018858,2]
[378549272,1754911746486,-68.77666566,0.00019184,2]
[378549273,1754911746510,-162.23221591,0.0001928,2]
[378549274,1754911751755,-162.50916648,0.0001928,2]
[378549275,1754911753777,-305.52074233,0.0001928,2]
[378549276,1754911757059,-164.70161008,0.0001928,2]
[378549277,1754911760390,-215.28387796,0.0001928,2]
[378549278,1754911762443,-436.02477421,0.0001928,2]
[378549279,1754911766548,-151.10730063,0.00019275,2]
[378549280,1754911768603,-300.0,0.00019275,2]
[378549284,1754911781304,-246.49216065,0.00019275,2]
[378549286,1754911784559,-228.89331178,0.00019275,2]
[378549287,1754911794096,-325.26701996,0.00019275,2]
[378549288,1754911797679,-290.80684081,0.00019275,2]
[378549289,1754911799738,-153.3577111,0.00019275,2]
[378549293,1754911803730,-24.04248255,0.00019275,2]
[378549294,1754911803754,-285.40050124,0.0001928,2]
[378549295,1754911806515,-154.90224994,0.00019178,2]
[378549296,1754911809468,-268.44734542,0.00019178,2]
[378549297,1754911811548,-242.65040464,0.00019178,2]
[378549298,1754911811570,-103.66264058,0.0001928,2]
[378549299,1754911814057,-406.47939276,0.0001928,2]
[378549302,1754911817299,-199.64772184,0.0001928,2]
[378549305,1754911823232,-372.13361386,0.0001928,2]
[378549306,1754911825132,-263.59378805,0.0001928,2]
[378549307,1754911828562,-303.60919135,0.0001928,2]
[378549308,1754911830642,-334.60769642,0.0001928,2]
[378549321,1754911832712,-345.09775006,0.0001928,2]
[378549366,1754911833127,2881.1815259,0.00018622,2]
[378549376,1754911834989,-190.23761772,0.0001928,2]
[378549412,1754911836664,-309.53925243,0.0001928,2]
[378549419,1754911836719,-52.02847868,0.0001928,2]
[378549421,1754911836728,-453.86447934,0.00019375,2]
[378549423,1754911836738,-1200.0,0.00019474,2]
[378549425,1754911836747,-4380.27555968,0.00019475,2]
[378549427,1754911836757,-300.0,0.0001967,2]
[378549429,1754911836766,-300.0,0.00019671,2]
[378549431,1754911836776,-300.0,0.00019671,2]
[378549433,1754911836786,-300.0,0.00019671,2]
[378549435,1754911836795,-550.28226675,0.00019671,2]
[378549437,1754911836805,-300.0,0.00019671,2]
[378549439,1754911836818,-460.0,0.00019671,2]
[378549440,1754911836828,-460.0,0.00019671,2]
[378549443,1754911836838,-460.0,0.00019671,2]
[378549445,1754911836848,-460.0,0.00019671,2]
[378549446,1754911836858,-460.0,0.00019671,2]
[378549449,1754911836868,-460.0,0.00019671,2]
[378549451,1754911836877,-460.0,0.00019671,2]
[378549454,1754911836888,-460.0,0.00019671,2]
[378549456,1754911836897,-460.0,0.00019671,2]
[378549458,1754911836906,-460.0,0.00019671,2]
[378549461,1754911836916,-706.34,0.00019671,2]
[378549464,1754911836927,-460.0,0.00019671,2]
[378549466,1754911836936,-460.0,0.00019671,2]
[378549468,1754911836946,-460.0,0.00019671,2]
[378549470,1754911836955,-151.77616946,0.00019671,2]
[378549472,1754911836965,-500.0,0.00019671,2]
[378549474,1754911836974,-500.0,0.00019671,2]
[378549476,1754911836984,-293.52068383,0.00019671,2]
[378549478,1754911836993,-211.92183308,0.00019671,2]
[378549480,1754911837003,-500.0,0.00019671,2]
[378549482,1754911837013,-500.0,0.00019671,2]
[378549484,1754911837023,-500.0,0.00019671,2]
[378549486,1754911837033,-500.0,0.00019671,2]
[378549488,1754911837043,-188.46337404,0.00019671,2]
[378549490,1754911837053,-500.0,0.00019671,2]
[378549492,1754911837065,-500.0,0.00019671,2]
[378549494,1754911837075,-555.56424162,0.00019671,2]
[378549496,1754911837085,-500.0,0.00019671,2]
[378549498,1754911837094,-500.0,0.00019671,2]
[378549500,1754911837103,-500.0,0.00019671,2]
[378549502,1754911837113,-500.0,0.00019671,2]
[378549504,1754911837122,-500.0,0.00019671,2]
[378549506,1754911837131,-218.64837295,0.00019671,2]
[378549508,1754911837141,-500.0,0.00019671,2]
[378549510,1754911837150,-429.94321138,0.00019671,2]
[378549512,1754911837160,-500.0,0.00019671,2]
[378549514,1754911837170,-500.0,0.00019671,2]
[378549516,1754911837179,-500.0,0.00019671,2]
[378549518,1754911837188,-500.0,0.00019671,2]
[378549520,1754911837197,-363.90445453,0.00019671,2]
[378549522,1754911837207,-250.32434081,0.00019671,2]
[378549524,1754911837216,-500.0,0.00019671,2]
[378549526,1754911837226,-500.0,0.00019671,2]
[378549528,1754911837235,-500.0,0.00019671,2]
[378549530,1754911837244,-500.0,0.00019671,2]
[378549532,1754911837254,-275.69460447,0.00019671,2]
[378549534,1754911837263,-500.0,0.00019671,2]
[378549536,1754911837273,-500.0,0.00019671,2]
[378549538,1754911837282,-500.0,0.00019671,2]
[378549540,1754911837291,-500.0,0.00019671,2]
[378549542,1754911837301,-500.0,0.00019671,2]
[378549544,1754911837310,-500.0,0.00019671,2]
[378549546,1754911837322,-500.0,0.00019671,2]
[378549548,1754911837332,-500.0,0.00019671,2]
[378549549,1754911837340,-500.0,0.00019671,2]
[378549550,1754911837350,-500.0,0.00019671,2]
[378549552,1754911837359,-500.0,0.00019671,2]
[378549554,1754911837368,-500.0,0.00019671,2]
[378549555,1754911837378,-500.0,0.00019671,2]
[378549557,1754911837387,-500.0,0.00019671,2]
[378549559,1754911837397,-500.0,0.00019671,2]
[378549560,1754911837406,-500.0,0.00019671,2]
[378549562,1754911837416,-500.0,0.00019671,2]
[378549564,1754911837425,-500.0,0.00019671,2]
[378549566,1754911837435,-500.0,0.00019671,2]
[378549568,1754911837443,-500.0,0.00019671,2]
[378549570,1754911837452,-500.0,0.00019671,2]
[378549572,1754911837462,-500.0,0.00019671,2]
[378549574,1754911837471,-500.0,0.00019671,2]
[378549576,1754911837480,-500.0,0.00019671,2]
[378549578,1754911837489,-500.0,0.00019671,2]
[378549580,1754911837498,-500.0,0.00019671,2]
[378549581,1754911837506,-500.0,0.00019671,2]
[378549582,1754911837515,-500.0,0.00019671,2]
[378549583,1754911837524,-463.81712356,0.00019671,2]
[378549584,1754911837533,-500.0,0.00019671,2]
[378549586,1754911837543,-500.0,0.00019671,2]
[378549588,1754911837552,-500.0,0.00019671,2]
[378549590,1754911837561,-500.0,0.00019671,2]
[378549592,1754911837573,-500.0,0.00019671,2]
[378549594,1754911837582,-500.0,0.00019671,2]
[378549596,1754911837591,-500.0,0.00019671,2]
[378549598,1754911837600,-500.0,0.00019671,2]
[378549600,1754911837609,-500.0,0.00019671,2]
[378549602,1754911837619,-500.0,0.00019671,2]
[378549604,1754911837628,-500.0,0.00019671,2]
[378549606,1754911837638,-500.0,0.00019671,2]
[378549608,1754911837647,-500.0,0.00019671,2]
[378549610,1754911837657,-500.0,0.00019671,2]
[378549612,1754911837666,-500.0,0.00019671,2]
[378549614,1754911837676,-500.0,0.00019671,2]
[378549616,1754911837685,-500.0,0.00019671,2]
[378549618,1754911837695,-500.0,0.00019671,2]
[378549620,1754911837704,-500.0,0.00019671,2]
[378549622,1754911837713,-500.0,0.00019671,2]
[378549624,1754911837723,-500.0,0.00019671,2]
[378549626,1754911837732,-500.0,0.00019671,2]
[378549628,1754911837742,-500.0,0.00019671,2]
[378549630,1754911837751,-500.0,0.00019671,2]
[378549632,1754911837762,-500.0,0.00019671,2]
[378549634,1754911837771,-500.0,0.00019671,2]
[378549636,1754911837780,-50000.0,0.00019672,2]
[378549638,1754911837789,-500.0,0.00019672,2]
[378549640,1754911837799,-632.67528486,0.00019673,2]
[378549642,1754911837808,-37919.08745293,0.00019673,2]
[378549644,1754911837823,-1007.22894842,0.00019673,2]
[378549646,1754911837832,-163.12424224,0.00019673,2]
[378549648,1754911837841,-9104.56283398,0.00019729,2]
[378549650,1754911837851,-1200.0,0.0001976,2]
[378549651,1754911837860,-3180.75,0.00019761,3]
[378549653,1754911837869,-2650.62,0.00019761,3]
[378549655,1754911837878,-1325.31,0.00019761,3]
[378549657,1754911837888,-662.66,0.00019761,3]
[378549660,1754911837899,-331.33,0.00019761,3]
[378549662,1754911837908,-165.66,0.00019761,3]
[378549664,1754911837918,-497.03,0.00019761,3]
[378549666,1754911837927,-297.60326337,0.0001977,2]
[378549668,1754911837936,-779.27863621,0.0001977,2]
[378549670,1754911837946,-779.27863621,0.0001977,2]
[378549672,1754911837955,-779.27863621,0.0001977,2]
[378549674,1754911837964,-779.27863621,0.0001977,2]
[378549676,1754911837974,-779.27863621,0.0001977,2]
[378549678,1754911837984,-779.27863621,0.0001977,2]
[378549680,1754911837993,-779.27863621,0.0001977,2]
[378549682,1754911838002,-779.27863621,0.0001977,2]
[378549684,1754911838013,-779.27863621,0.0001977,2]
[378549686,1754911838023,-779.27863621,0.0001977,2]
[378549688,1754911838036,-779.27863621,0.0001977,2]
[378549690,1754911838046,-779.27863621,0.0001977,2]
[378549692,1754911838055,-779.27863621,0.0001977,2]
[378549693,1754911838065,-779.27863621,0.0001977,2]
[378549694,1754911838074,-779.27863621,0.0001977,2]
[378549695,1754911838084,-982.61949278,0.0001977,2]
[378549696,1754911838093,-982.61949278,0.0001977,2]
[378549697,1754911838103,-982.61949278,0.0001977,2]
[378549699,1754911838113,-982.61949278,0.0001977,2]
[378549702,1754911838123,-982.61949278,0.0001977,2]
[378549705,1754911838134,-982.61949278,0.0001977,2]
[378549707,1754911838143,-982.61949278,0.0001977,2]
[378549709,1754911838153,-982.61949278,0.0001977,2]
[378549711,1754911838163,-982.61949278,0.0001977,2]
[378549713,1754911838172,-982.61949278,0.0001977,2]
[378549715,1754911838181,-982.61949278,0.0001977,2]
[378549717,1754911838190,-460.0,0.0001977,2]
[378549719,1754911838199,-460.0,0.0001977,2]
[378549721,1754911838208,-460.0,0.0001977,2]
[378549723,1754911838217,-593.01,0.0001977,2]
[378549725,1754911838227,-460.0,0.0001977,2]
[378549727,1754911838237,-1630.85,0.0001977,2]
[378549729,1754911838246,-513.26,0.0001977,2]
[378549731,1754911838256,-460.0,0.0001977,2]
[378549732,1754911838265,-39492.69049361,0.00019771,2]
[378549733,1754911838279,-475.02732027,0.00019771,2]
[378549734,1754911838303,-429.14,0.00019771,2]
[378549735,1754911838316,-685.15783092,0.00019771,2]
[378549736,1754911838326,-2137.5911607,0.00019771,2]
[378549756,1754911838537,-273.17072867,0.00019671,2]
[378549775,1754911838708,-186.82927133,0.00019671,2]
[378549777,1754911838717,-460.0,0.00019671,2]
[378549779,1754911838727,-769.20143221,0.00019771,2]
[378549782,1754911838737,-1813.951988,0.00019771,2]
[378549784,1754911838749,-180811.91299705,0.00019771,2]
[378549786,1754911838758,-500.0,0.00019773,2]
[378549788,1754911838768,-500.0,0.00019773,2]
[378549790,1754911838777,-500.0,0.00019773,2]
[378549792,1754911838786,-500.0,0.00019773,2]
[378549794,1754911838796,-500.0,0.00019773,2]
[378549796,1754911838806,-500.0,0.00019773,2]
[378549798,1754911838817,-500.0,0.00019773,2]
[378549800,1754911838827,-500.0,0.00019773,2]
[378549802,1754911838836,-500.0,0.00019773,2]
[378549804,1754911838845,-500.0,0.00019773,2]
[378549806,1754911838855,-500.0,0.00019773,2]
[378549808,1754911838864,-500.0,0.00019773,2]
[378549810,1754911838874,-500.0,0.00019773,2]
[378549812,1754911838883,-158.06161699,0.00019773,2]
[378549814,1754911838894,-258.85036039,0.00019773,2]
[378549816,1754911838904,-392.16563197,0.00019773,2]
[378549818,1754911838913,-500.0,0.00019773,2]
[378549820,1754911838922,-502.38628705,0.00019773,2]
[378549822,1754911838931,-237.55722517,0.00019773,2]
[378549824,1754911838941,-500.0,0.00019773,2]
[378549826,1754911838950,-503.15587219,0.00019773,2]
[378549828,1754911838959,-500.0,0.00019773,2]
[378549830,1754911838969,-500.0,0.00019773,2]
[378549832,1754911838979,-500.0,0.00019773,2]
[378549834,1754911838989,-438.23754665,0.00019773,2]
[378549836,1754911838998,-500.0,0.00019773,2]
[378549838,1754911839008,-500.0,0.00019773,2]
[378549840,1754911839017,-155.55451214,0.00019773,2]
[378549842,1754911839027,-500.0,0.00019773,2]
[378549844,1754911839036,-500.0,0.00019773,2]
[378549846,1754911839046,-500.0,0.00019773,2]
[378549848,1754911839055,-500.0,0.00019773,2]
[378549849,1754911839066,-500.0,0.00019773,2]
[378549851,1754911839075,-500.0,0.00019773,2]
[378549853,1754911839084,-339.07806505,0.00019773,2]
[378549856,1754911839093,-500.0,0.00019773,2]
[378549858,1754911839103,-500.0,0.00019773,2]
[378549860,1754911839113,-500.0,0.00019773,2]
[378549862,1754911839123,-500.0,0.00019773,2]
[378549864,1754911839132,-500.0,0.00019773,2]
[378549866,1754911839141,-500.0,0.00019773,2]
[378549867,1754911839151,-9104.56283398,0.00019784,2]
[378549869,1754911839161,-310.0,0.00019817,2]
[378549871,1754911839170,-9104.56283398,0.0001984,2]
[378549873,1754911839180,-501.0,0.0001984,2]
[378549875,1754911839189,-501.0,0.0001984,2]
[378549877,1754911839199,-501.0,0.0001984,2]
[378549879,1754911839208,-501.0,0.0001984,2]
[378549881,1754911839217,-501.0,0.0001984,2]
[378549883,1754911839226,-501.0,0.0001984,2]
[378549885,1754911839236,-501.0,0.0001984,2]
[378549887,1754911839245,-501.0,0.0001984,2]
[378549889,1754911839254,-501.0,0.0001984,2]
[378549891,1754911839264,-501.0,0.0001984,2]
[378549893,1754911839273,-501.0,0.0001984,2]
[378549895,1754911839283,-501.0,0.0001984,2]
[378549897,1754911839292,-501.0,0.0001984,2]
[378549899,1754911839302,-501.0,0.0001984,2]
[378549901,1754911839311,-501.0,0.0001984,2]
[378549903,1754911839325,-501.0,0.0001984,2]
[378549905,1754911839335,-501.0,0.0001984,2]
[378549908,1754911839345,-501.0,0.0001984,2]
[378549909,1754911839354,-501.0,0.0001984,2]
[378549911,1754911839364,-501.0,0.0001984,2]
[378549913,1754911839373,-501.0,0.0001984,2]
[378549915,1754911839382,-501.0,0.0001984,2]
[378549917,1754911839391,-501.0,0.0001984,2]
[378549919,1754911839400,-501.0,0.0001984,2]
[378549921,1754911839409,-501.0,0.0001984,2]
[378549923,1754911839419,-501.0,0.0001984,2]
[378549925,1754911839429,-501.0,0.0001984,2]
[378549927,1754911839438,-501.0,0.0001984,2]
[378549929,1754911839447,-501.0,0.0001984,2]
[378549931,1754911839456,-501.0,0.0001984,2]
[378549933,1754911839465,-501.0,0.0001984,2]
[378549935,1754911839475,-501.0,0.0001984,2]
[378549937,1754911839484,-501.0,0.0001984,2]
[378549939,1754911839493,-501.0,0.0001984,2]
[378549941,1754911839503,-501.0,0.0001984,2]
[378549943,1754911839511,-501.0,0.0001984,2]
[378549945,1754911839521,-545.36988327,0.0001984,2]